bitfinex/quotes_SOLUSD_20251216
["timestamp","ask_amount","ask_price","bid_price","bid_amount"]
[1765921974566,27.54446601,128.75,128.73,9.50994492]
[1765921975580,27.18446601,128.75,128.73,9.50994492]
[1765921979282,27.18446601,128.75,128.73,0.7]
[1765921988701,18.20439222,128.76,128.75,0.69]
[1765921988997,26.70379016,128.77,128.75,0.69]
[1765921989493,27.06379016,128.77,128.75,0.69]
[1765921990700,26.70379016,128.77,128.75,0.69]
[1765921990883,18.20379016,128.77,128.75,0.69]
[1765921996691,37.97825004,128.77,128.75,0.69]
[1765921997003,37.61825004,128.77,128.75,0.69]
[1765922000103,37.97825004,128.77,128.75,0.69]
[1765922000394,37.61825004,128.77,128.75,0.69]
[1765922001312,37.97825004,128.77,128.75,0.69]
[1765922001508,7.76699029,128.75,128.74,8.80994492]
[1765922001892,7.76699029,128.75,128.74,9.49994492]
[1765922002387,7.76699029,128.75,128.74,8.80994492]
[1765922002590,0.36,128.74,128.72,8.80994492]
[1765922003300,31.3140174,128.75,128.72,9.49994492]
[1765922003501,39.8140174,128.75,128.72,9.49994492]
[1765922004716,36.04446601,128.75,128.72,9.49994492]
[1765922011829,8.12814109,128.74,128.72,9.49994492]
[1765922012029,7.76814109,128.74,128.72,9.49994492]
[1765922017050,8.12814109,128.74,128.72,9.49994492]
[1765922017444,7.76814109,128.74,128.72,9.49994492]
[1765922018338,37.98479804,128.74,128.72,0.69]
[1765922018660,37.98479804,128.74,128.69,0.2]
[1765922018661,0.36,128.71,128.69,0.2]
[1765922018858,0.36,128.7,128.69,0.2]
[1765922019050,4.12955139,128.7,128.69,0.2]
[1765922019244,7.24396724,128.7,128.69,0.2]
[1765922019651,4.12955139,128.7,128.69,0.2]
[1765922019854,0.36,128.7,128.69,0.2]
[1765922020061,4.12955139,128.7,128.69,0.2]
[1765922020567,11.89955916,128.7,128.69,0.2]
[1765922020770,8.13000777,128.7,128.69,0.2]
[1765922022855,11.24442362,128.7,128.69,0.2]
[1765922023367,15.01397501,128.7,128.69,0.2]
[1765922026949,10.79767296,128.69,128.68,0.2]
[1765922027163,23.07339078,128.69,128.68,0.2]
[1765922028555,30.84400232,128.69,128.68,0.2]
[1765922029047,33.95890322,128.69,128.68,0.2]
[1765922033482,30.1831854,128.69,128.68,0.2]
[1765922033785,33.95890322,128.69,128.68,0.2]
[1765922034154,53.02543208,128.69,128.67,0.2]
[1765922034366,4.13571782,128.68,128.67,0.2]
[1765922034963,7.25086131,128.68,128.67,0.2]
[1765922035977,15.02207672,128.68,128.67,0.2]
[1765922042686,10.8863589,128.68,128.67,0.2]
[1765922042985,11.2463589,128.68,128.67,1e-08]
[1765922043175,15.02207672,128.68,128.67,1e-08]
[1765922043963,10.8863589,128.68,128.67,1e-08]
[1765922044162,7.77121541,128.68,128.67,9.50994493]
[1765922044594,7.77121541,128.68,128.67,0.70000001]
[1765922044769,20.06693323,128.68,128.67,1e-08]
[1765922044959,28.87687815,128.68,128.67,1e-08]
[1765922046894,25.10116033,128.68,128.67,1e-08]
[1765922047088,28.87687815,128.68,128.67,1e-08]
[1765922057078,10.43767296,128.65,128.63,1e-08]
[1765922057267,12.65571782,128.64,128.63,1e-08]
[1765922057592,0.36,128.63,128.6,0.2]
[1765922057894,3.77571782,128.61,128.6,0.2]
[1765922058081,4.13571782,128.61,128.6,0.2]
[1765922058284,11.91116296,128.61,128.6,0.2]
[1765922058606,16.29508518,128.62,128.6,9.00994492]
[1765922058774,7.77508518,128.62,128.61,9.50994492]
[1765922059877,7.77423618,128.63,128.61,8.80994492]
[1765922060209,7.77423618,128.63,128.62,0.7]
[1765922064575,10.19192441,128.63,128.62,0.7]
[1765922064803,18.71192441,128.63,128.62,0.7]
[1765922065104,27.52186933,128.63,128.62,0.7]
[1765922066105,47.31745978,128.63,128.6,9.70994492]
[1765922066508,47.31745978,128.63,128.61,0.7]
[1765922066802,35.72982663,128.63,128.61,0.7]
[1765922067009,38.14751486,128.63,128.61,0.7]
[1765922068006,35.72982663,128.63,128.61,0.7]
[1765922074312,38.50751486,128.63,128.61,0.7]
[1765922074516,47.15745978,128.63,128.61,0.7]
[1765922075216,10.19252884,128.62,128.61,0.7]
[1765922077924,7.77484061,128.62,128.61,0.7]
[1765922079315,7.77445261,128.63,128.62,9.52994492]
[1765922080216,26.73159564,128.64,128.62,0.72]
[1765922105664,0.36,128.63,128.61,8.80994492]
[1765922105872,2.77750682,128.63,128.61,8.80994492]
[1765922106060,46.16567524,128.64,128.6,0.91]
[1765922106061,2.77750682,128.62,128.6,0.91]
[1765922106641,2.41750682,128.61,128.6,9.00994492]
[1765922107376,2.41750682,128.61,128.6,9.71994492]
[1765922107576,10.19295196,128.61,128.6,9.71994492]
[1765922107880,10.19295196,128.61,128.6,9.00994492]
[1765922108169,10.19295196,128.61,128.6,9.71994492]
[1765922108558,10.55295196,128.61,128.6,0.2]
[1765922108763,10.19295196,128.61,128.6,0.2]
[1765922109477,10.19295196,128.61,128.6,0.91]
[1765922112089,7.77544514,128.61,128.6,0.91]
[1765922117389,7.77544514,128.61,128.6,9.71994492]
[1765922119290,7.77544514,128.61,128.6,9.00994492]
[1765922119462,7.77544514,128.61,128.6,9.71994492]
[1765922122685,7.77544514,128.61,128.6,9.00994492]
[1765922122891,7.77544514,128.61,128.6,9.71994492]
[1765922126595,7.77544514,128.61,128.6,9.00994492]
[1765922126771,8.13544514,128.61,128.6,9.00994492]
[1765922127671,7.77544514,128.61,128.6,9.00994492]
[1765922128197,7.77544514,128.61,128.6,9.71994492]
[1765922128369,7.77544514,128.61,128.6,9.00994492]
[1765922129808,7.77544514,128.61,128.6,0.2]
[1765922130000,7.77544514,128.61,128.6,0.91]
[1765922167380,7.77454696,128.63,128.61,8.80994492]
[1765922167600,8.13454696,128.63,128.6,9.00994492]
[1765922167780,0.36,128.62,128.6,0.2]
[1765922167951,0.36,128.61,128.6,0.2]
[1765922168475,8.13544514,128.61,128.6,0.2]
[1765922168984,11.9141542,128.61,128.6,0.2]
[1765922169162,20.4341542,128.61,128.6,0.2]
[1765922169363,10.43767296,128.59,128.54,0.2]
[1765922169565,3.77870906,128.55,128.54,0.2]
[1765922169878,12.29870906,128.55,128.54,0.2]
[1765922170383,12.29870906,128.55,128.54,1e-08]
[1765922170557,20.07778335,128.55,128.54,1e-08]
[1765922171664,26.73674725,128.55,128.54,1e-08]
[1765922171864,30.51545631,128.55,128.54,1e-08]
[1765922173486,20.07778335,128.55,128.54,1e-08]
[1765922174261,3.77870906,128.54,128.53,1e-08]
[1765922174666,21.99606149,128.54,128.53,1e-08]
[1765922176370,21.99606149,128.54,128.52,0.2]
[1765922176570,12.29870906,128.53,128.52,0.2]
[1765922176771,20.07899381,128.53,128.52,0.2]
[1765922177191,20.07899381,128.53,128.52,1e-08]
[1765922177368,10.43767296,128.51,128.5,1e-08]
[1765922177676,22.73638202,128.51,128.5,1e-08]
[1765922178470,33.63763739,128.51,128.5,1e-08]
[1765922178979,30.51787762,128.51,128.5,1e-08]
[1765922179780,18.21916856,128.51,128.5,0.68000001]
[1765922179970,19.44844572,128.55,128.5,9.48994493]
[1765922180289,8.52,128.54,128.51,0.68]
[1765922180595,10.43767296,128.52,128.51,0.68]
[1765922181991,7.7805722,128.53,128.51,0.68]
[1765922184078,8.52,128.54,128.51,0.68]
[1765922184279,8.52,128.54,128.53,0.68]
[1765922184801,18.21708931,128.55,128.53,0.68]
[1765922191115,10.43767296,128.55,128.53,0.68]
[1765922191477,10.43767296,128.55,128.54,9.48994492]
[1765922191676,8.52,128.56,128.55,0.68]
[1765922191914,10.43767296,128.56,128.55,9.48994492]
[1765922193782,7.77736877,128.58,128.56,0.69]
[1765922193980,10.19855577,128.58,128.56,0.69]
[1765922194406,2.421187,128.58,128.56,0.69]
[1765922194595,18.71803036,128.59,128.56,0.69]
[1765922196689,16.29684336,128.59,128.56,0.69]
[1765922204321,18.71803036,128.59,128.56,0.69]
[1765922204910,16.29684336,128.59,128.56,0.69]
[1765922205089,18.71803036,128.59,128.56,0.69]
[1765922205824,35.73847956,128.59,128.56,0.69]
[1765922206025,16.29684336,128.59,128.56,0.69]
[1765922208017,10.43767296,128.58,128.57,9.50994492]
[1765922212424,7.77604976,128.6,128.57,8.80994492]
[1765922212639,18.21372272,128.6,128.58,0.7]
[1765922214715,20.63490972,128.6,128.57,9.50994492]
[1765922215030,20.63490972,128.6,128.58,0.7]
[1765922216716,20.63490972,128.6,128.57,9.50994492]
[1765922217036,20.63490972,128.6,128.58,0.7]
[1765922217932,20.63490972,128.6,128.57,9.50994492]
[1765922218627,20.63490972,128.6,128.58,0.7]
[1765922219129,8.52,128.59,128.55,7.77886076]
[1765922219428,10.941187,128.59,128.56,0.7]
[1765922219934,2.421187,128.57,128.54,9.50994492]
[1765922220232,21.37885996,128.57,128.54,8.80994492]
[1765922220431,21.37885996,128.57,128.52,8.80994492]
[1765922220730,21.37885996,128.57,128.55,0.7]
[1765922220930,29.15709335,128.57,128.55,0.7]
[1765922224513,26.73590635,128.57,128.55,0.7]
[1765922234546,18.95767296,128.57,128.56,0.67]
[1765922235440,18.95767296,128.59,128.58,0.67]
[1765922235831,21.37885996,128.59,128.57,0.67]
[1765922236028,10.941187,128.59,128.57,0.67]
[1765922236251,18.71839384,128.59,128.57,0.67]
[1765922236434,18.71683385,128.59,128.57,0.67]
[1765922237736,16.29720684,128.59,128.57,0.67]
[1765922237938,18.71683385,128.59,128.57,0.67]
[1765922241154,16.29720684,128.59,128.57,0.67]
[1765922241340,18.71683385,128.59,128.57,0.67]
[1765922243357,20.07803691,128.59,128.57,0.67]
[1765922243836,11.55829186,128.58,128.56,9.47994492]
[1765922244044,11.55829186,128.58,128.56,0.67]
[1765922246130,7.77746179,128.58,128.56,0.67]
[1765922251862,38.6870617,128.61,128.58,0.67]
[1765922252043,42.46789177,128.61,128.58,0.67]
[1765922252235,33.65794685,128.61,128.58,0.67]
[1765922252435,3.78083007,128.6,128.58,0.67]
[1765922253350,11.55719533,128.6,128.58,0.67]
[1765922253753,20.07719533,128.6,128.58,0.67]
[1765922260649,16.29636526,128.6,128.58,0.67]
[1765922260949,20.07719533,128.6,128.58,0.67]
[1765922263346,16.29636526,128.6,128.58,0.67]
[1765922264861,7.77636526,128.6,128.58,0.67]
[1765922265671,11.55719533,128.6,128.58,0.67]
[1765922265854,3.78083007,128.59,128.58,0.67]
[1765922266981,16.29636526,128.6,128.58,0.67]
[1765922267171,20.07719533,128.6,128.58,0.67]
[1765922268284,8.52,128.62,128.59,8.80994492]
[1765922268573,7.90190995,128.65,128.61,8.80994492]
[1765922268782,7.90190995,128.65,128.63,0.69]
[1765922268783,7.77334254,128.65,128.63,0.69]
[1765922271676,3.78083007,128.64,128.61,0.69]
[1765922271862,12.30083007,128.64,128.61,9.49994492]
[1765922272183,12.30083007,128.64,128.61,0.69]
[1765922272184,7.77423618,128.63,128.61,0.69]
[1765922272368,7.77423618,128.63,128.61,9.49994492]
[1765922274685,7.77423618,128.63,128.61,0.69]
[1765922274869,11.55506625,128.63,128.61,0.69]
[1765922275471,11.55506625,128.63,128.6,9.49994492]
[1765922276684,11.55506625,128.63,128.59,0.69]
[1765922276873,30.9906567,128.63,128.59,0.69]
[1765922278288,10.43767296,128.64,128.62,0.69]
[1765922278492,10.43767296,128.64,128.61,3.78083007]
[1765922278493,10.43767296,128.64,128.63,0.69]
[1765922279294,10.43767296,128.64,128.62,9.49994492]
[1765922279689,10.43767296,128.64,128.62,0.69]
[1765922279877,10.43767296,128.64,128.61,0.69]
[1765922279878,21.99228203,128.64,128.61,0.69]
[1765922281291,18.21145196,128.64,128.61,0.69]
[1765922281893,3.78083007,128.63,128.6,0.69]
[1765922282107,12.30083007,128.63,128.6,0.69]
[1765922283576,7.77484061,128.62,128.6,0.69]
[1765922283888,11.55567068,128.62,128.58,0.69]
[1765922284089,8.52,128.61,128.58,0.69]
[1765922284270,8.52,128.61,128.59,0.7]
[1765922285610,16.29569102,128.61,128.59,0.7]
[1765922287400,8.52,128.61,128.59,0.7]
[1765922287728,3.78083007,128.62,128.59,11.55742616]
[1765922287729,10.43767296,128.62,128.59,11.55742616]
[1765922287911,8.52,128.64,128.6,0.7]
[1765922288207,16.29363184,128.64,128.6,0.7]
[1765922292725,18.21101442,128.65,128.62,0.7]
[1765922294289,10.43767296,128.65,128.62,0.7]
[1765922294489,10.43767296,128.65,128.63,0.7]
[1765922298317,18.2107107,128.65,128.63,0.7]
[1765922298915,10.43767296,128.65,128.63,0.7]
[1765922305942,10.43767296,128.65,128.63,7.77381338]
[1765922306111,133.7642618,128.69,128.64,2.41661015]
[1765922306426,40.80114364,128.69,128.65,0.7]
[1765922307215,7.77121541,128.68,128.65,0.7]
[1765922308531,7.77121541,128.68,128.66,0.7]
[1765922309232,7.76940408,128.71,128.67,0.7]
[1765922310511,7.76940408,128.71,128.68,0.7]
[1765922314937,10.18522311,128.71,128.68,0.7]
[1765922316020,10.18522311,128.71,128.66,8.44226609]
[1765922316021,18.70522311,128.71,128.66,8.44226609]
[1765922316330,18.70522311,128.71,128.68,0.67]
[1765922318951,18.70522311,128.71,128.68,0.67]
[1765922319343,10.18583038,128.7,128.68,0.67]
[1765922324766,7.77001135,128.7,128.68,0.67]
[1765922327465,10.18583038,128.7,128.68,0.67]
[1765922328066,7.76940408,128.71,128.68,0.67]
[1765922328373,18.30654162,128.72,128.69,0.67]
[1765922330479,20.72236065,128.72,128.69,0.67]
[1765922330776,8.52,128.71,128.67,0.67]
[1765922330966,2.41581903,128.7,128.67,0.67]
[1765922332283,7.77061154,128.69,128.67,0.67]
[1765922333671,7.77000777,128.7,128.67,0.67]
[1765922333877,16.28966057,128.71,128.68,0.67]
[1765922334180,8.52,128.71,128.68,0.67]
[1765922334558,18.30678006,128.72,128.68,0.67]
[1765922334759,40.14460033,128.72,128.68,0.67]
[1765922335261,2.41581903,128.71,128.68,0.67]
[1765922335481,2.41581903,128.71,128.67,0.67]
[1765922335682,16.28992822,128.71,128.67,7.77171466]
[1765922335983,18.30670795,128.72,128.68,0.67]
[1765922337482,18.30670795,128.72,128.69,0.67]
[1765922350069,18.30670795,128.72,128.7,0.72]
[1765922351260,18.30670795,128.72,128.71,0.72]
[1765922351261,0.1,128.72,128.71,0.72]
[1765922353164,0.1,128.72,128.71,8.48940408]
[1765922354069,0.1,128.72,128.71,0.72]
[1765922354286,2.51581903,128.72,128.69,9.24]
[1765922354488,2.41581903,128.71,128.68,0.72]
[1765922355406,10.18557195,128.71,128.68,0.72]
[1765922356002,2.41581903,128.7,128.67,0.72]
[1765922356189,2.41581903,128.69,128.66,0.72]
[1765922357486,2.41581903,128.7,128.66,0.72]
[1765922360903,7.77061154,128.69,128.66,0.72]
[1765922361577,10.18643057,128.69,128.66,0.72]
[1765922361903,10.18643057,128.69,128.64,8.80994492]
[1765922361904,2.41581903,128.67,128.64,0.72]
[1765922362403,2.41581903,128.68,128.65,0.72]
[1765922363010,10.18758217,128.68,128.65,0.72]
[1765922363210,10.43767296,128.68,128.67,0.72]
[1765922363518,31.71808882,128.71,128.67,0.72]
[1765922364313,7.77025112,128.7,128.67,0.72]
[1765922365709,7.77025112,128.7,128.67,8.49176811]
[1765922365904,0.1,128.72,128.69,0.72]
[1765922366105,0.1,128.72,128.7,0.72]
[1765922371908,0.1,128.72,128.67,0.72]
[1765922372112,3.87375065,128.72,128.68,0.72]
[1765922372412,3.87375065,128.72,128.69,0.72]
[1765922373206,0.1,128.72,128.69,12.58369557]
[1765922373412,0.1,128.72,128.7,0.72]
[1765922373787,0.1,128.72,128.71,0.71]
[1765922375293,0.1,128.72,128.71,21.06309965]
[1765922375506,0.1,128.73,128.72,0.7]
[1765922375698,0.1,128.73,128.72,4.47375065]
[1765922376313,0.1,128.73,128.72,0.7]
[1765922377022,0.1,128.73,128.72,8.46880049]
[1765922377620,0.1,128.73,128.72,21.04849351]
[1765922387321,0.1,128.73,128.72,17.27874541]
[1765922395320,0.1,128.73,128.72,21.04849351]
[1765922395518,0.2,128.73,128.7,0.7]
[1765922397341,11.73845587,128.73,128.7,0.7]
[1765922397939,0.1,128.73,128.72,0.7]
[1765922399315,0.1,128.71,128.66,0.7]
[1765922399516,0.1,128.71,128.61,0.99999999]
[1765922399517,0.1,128.66,128.61,7.77510448]
[1765922399745,3.7697481,128.65,128.62,0.7]
[1765922400237,3.8697481,128.66,128.63,0.7]
[1765922400536,3.7697481,128.66,128.63,0.7]
[1765922400747,10.43767296,128.67,128.65,0.7]
[1765922400917,7.77121541,128.68,128.65,8.47296093]
[1765922401317,7.77121541,128.68,128.65,0.7]
[1765922401920,10.43767296,128.69,128.67,0.7]
[1765922403544,7.77026044,128.7,128.67,0.7]
[1765922406142,7.77026044,128.7,128.68,0.72]
[1765922406339,7.76968947,128.71,128.68,0.72]
[1765922406543,7.76968947,128.71,128.68,9.22]
[1765922407393,7.76895141,128.72,128.7,0.72]
[1765922407724,7.868197,128.73,128.7,0.72]
[1765922407954,7.868197,128.73,128.71,0.72]
[1765922408150,7.868197,128.73,128.72,0.72]
[1765922408456,0.1,128.73,128.72,0.72]
[1765922409225,0.1,128.73,128.72,9.52994492]
[1765922410337,0.1,128.73,128.71,0.72]
[1765922410540,0.1,128.73,128.71,9.24]
[1765922412454,0.1,128.73,128.7,9.52994492]
[1765922412660,0.2,128.73,128.7,18.02994492]
[1765922412960,0.1,128.73,128.7,18.02994492]
[1765922413563,0.1,128.73,128.71,0.72]
[1765922414459,7.868197,128.73,128.71,0.72]
[1765922417049,0.1,128.73,128.72,0.72]
[1765922418058,0.1,128.73,128.72,9.52994492]
[1765922418255,0.1,128.73,128.72,21.79969302]
[1765922418763,0.1,128.73,128.72,29.56849351]
[1765922421542,0.1,128.76,128.75,19.96761788]
[1765922421543,1e-08,128.76,128.75,19.96761788]
[1765922421743,1e-08,128.76,128.75,36.7838131]
[1765922422149,0.1,128.81,128.8,13.29969302]
[1765922422356,0.1,128.81,128.8,21.79969302]
[1765922422556,0.1,128.82,128.81,9.52994492]
[1765922422767,0.1,128.82,128.81,13.29969302]
[1765922423462,0.1,128.82,128.81,11.93926169]
[1765922423655,0.1,128.82,128.81,19.70263409]
[1765922434672,0.1,128.82,128.81,8.80994492]
[1765922434873,0.1,128.85,128.81,49.30038188]
[1765922435179,0.1,128.85,128.84,3.11931677]
[1765922435359,0.1,128.85,128.84,20.42926169]
[1765922436065,0.1,128.85,128.84,28.19082642]
[1765922436765,0.1,128.88,128.86,0.71]
[1765922436955,0.1,128.88,128.87,11.61931677]
[1765922438364,0.1,128.88,128.87,19.37907466]
[1765922438774,0.1,128.88,128.87,28.18901958]
[1765922449269,0.1,128.88,128.87,28.18566599]
[1765922451777,0.1,128.91,128.89,0.71]
[1765922452077,0.1,128.91,128.9,20.4259081]
[1765922453379,0.1,128.91,128.9,28.18386]
[1765922453682,0.1,128.91,128.9,28.95965519]
[1765922455085,0.1,128.92,128.91,9.51994492]
[1765922455260,0.1,128.92,128.91,11.9259081]
[1765922455460,0.1,128.92,128.91,19.68325818]
[1765922456681,0.1,128.92,128.91,28.18325818]
[1765922458789,0.4,128.92,128.91,16.567295]
[1765922459097,0.1,128.92,128.91,28.18325818]
[1765922463169,0.1,128.94,128.93,9.51994492]
[1765922463472,0.1,128.94,128.93,20.4259081]
[1765922465294,0.1,128.94,128.93,28.18205484]
[1765922470696,0.1,128.94,128.93,30.58801802]
[1765922471696,0.1,128.96,128.95,8.80994492]
[1765922471897,0.1,128.96,128.95,19.7159081]
[1765922472372,0.4,128.96,128.95,11.2159081]
[1765922472673,0.4,128.96,128.93,38.27418656]
[1765922472878,0.4,128.96,128.95,2.40596318]
[1765922473404,0.4,128.96,128.95,18.97085187]
[1765922473776,0.4,128.96,128.95,16.56488869]
[1765922473980,0.4,128.96,128.95,25.06488869]
[1765922475285,0.3,128.95,128.92,8.80994492]
[1765922476293,0.3,128.95,128.93,7.75582801]
[1765922477188,0.3,128.95,128.94,11.2159081]
[1765922477386,0.4,128.96,128.94,11.2159081]
[1765922478303,0.3,128.95,128.94,8.80994492]
[1765922478499,0.1,128.96,128.95,0.69]
[1765922478701,0.1,128.96,128.95,20.4059081]
[1765922479285,0.1,128.96,128.95,28.16085187]
[1765922481407,0.1,128.96,128.95,27.47085187]
[1765922481610,0.4,128.96,128.95,25.06488869]
[1765922482578,0.1,128.96,128.95,25.06488869]
[1765922482784,0.1,128.96,128.95,28.16085187]
[1765922484101,1e-08,128.96,128.95,27.47085187]
[1765922484291,1e-08,128.96,128.95,28.16085187]
[1765922484489,1e-08,128.96,128.95,31.26680365]
[1765922484912,0.1,129.01,129.0,9.49994492]
[1765922485097,0.1,129.01,129.0,28.55602685]
[1765922485291,0.1,129.01,129.0,26.15006367]
[1765922485498,0.4,129.01,129.0,18.30659422]
[1765922485692,0.4,129.01,129.0,26.80659422]
[1765922485693,0.1,129.01,129.0,26.80659422]
[1765922486107,0.1,129.01,129.0,34.5585322]
[1765922487507,0.1,129.01,129.0,35.2485322]
[1765922488912,0.1,129.01,129.0,39.00102593]
[1765922490094,0.1,129.05,129.02,0.69]
[1765922490293,0.1,129.05,129.01,19.24761788]
[1765922490294,0.1,129.05,129.04,13.25243865]
[1765922490501,0.1,129.05,129.04,18.99659422]
[1765922490696,0.1,129.05,129.04,26.74612924]
[1765922491092,1e-08,129.05,129.04,37.9587557]
[1765922491402,0.1,129.09,129.06,8.80994492]
[1765922491403,0.4,129.09,129.06,8.80994492]
[1765922491712,0.1,129.09,129.08,12.56243865]
[1765922491894,0.1,129.09,129.08,18.27778942]
[1765922492800,0.1,129.09,129.08,26.02492298]
[1765922493112,0.1,129.09,129.08,22.27242925]
[1765922493517,0.1,129.09,129.08,34.52492298]
[1765922494123,0.1,129.09,129.08,28.80957221]
[1765922494310,0.1,129.09,129.07,7.74756854]
[1765922494508,0.3,129.08,129.07,8.80994492]
[1765922494813,0.3,129.07,129.06,8.48]
[1765922495316,0.3,129.07,129.05,17.28994492]
[1765922495716,0.3,129.06,129.02,3.75249373]
[1765922495923,0.3,129.08,129.05,8.80994492]
[1765922496223,0.3,129.08,129.05,17.28994492]
[1765922496803,0.3,129.08,129.05,28.79135337]
[1765922497221,0.3,129.08,129.05,25.03885964]
[1765922497426,0.3,129.08,129.05,28.79135337]
[1765922498100,0.1,129.09,129.05,25.03885964]
[1765922498313,0.1,129.09,129.07,8.80994492]
[1765922498504,0.1,129.09,129.07,17.28994492]
[1765922498705,0.1,129.09,129.07,25.03754787]
[1765922498905,0.4,129.09,129.07,25.03754787]
[1765922499329,0.3,129.08,129.07,17.28994492]
[1765922501722,0.3,129.08,129.07,25.0376787]
[1765922501900,0.1,129.09,129.07,25.0376787]
[1765922502100,0.1,129.09,129.07,29.47017243]
[1765922503226,0.1,129.09,129.07,28.79017243]
[1765922503425,0.4,129.09,129.07,28.79017243]
[1765922503807,0.4,129.09,129.07,17.28994492]
[1765922504319,0.3,129.08,129.07,8.48]
[1765922506016,0.3,129.08,129.06,8.80994492]
[1765922506017,0.3,129.07,129.03,3.75249373]
[1765922506215,0.3,129.07,129.04,17.28994492]
[1765922507215,0.3,129.06,129.04,8.48]
[1765922508529,0.3,129.05,129.04,8.48]
[1765922511025,0.3,129.08,129.05,8.80994492]
[1765922511233,0.3,129.08,129.06,8.48]
[1765922512006,0.4,129.09,129.07,8.80994492]
[1765922512209,0.1,129.09,129.08,8.48]
[1765922512529,0.1,129.09,129.08,21.72243865]
[1765922513033,0.1,129.09,129.08,29.46957221]
[1765922513925,0.1,129.09,129.08,29.46529129]
[1765922514719,0.1,129.09,129.08,25.71707848]
[1765922514914,0.1,129.09,129.08,29.46529129]
[1765922517810,0.1,129.09,129.08,25.03707848]
[1765922518013,0.1,129.09,129.08,29.46529129]
[1765922518433,0.1,129.09,129.08,20.98529129]
[1765922518639,0.1,129.09,129.08,29.46529129]
[1765922519540,0.1,129.09,129.08,20.98529129]
[1765922519727,0.1,129.09,129.08,29.46529129]
[1765922520341,0.1,129.09,129.08,20.98529129]
[1765922520548,0.1,129.09,129.08,29.46529129]
[1765922520919,0.1,129.09,129.08,20.98529129]
[1765922521118,0.1,129.09,129.08,25.71707848]
[1765922521319,0.1,129.09,129.08,29.46529129]
[1765922523839,0.1,129.09,129.08,20.98529129]
[1765922524031,0.1,129.09,129.08,29.46529129]
[1765922524215,0.1,129.09,129.08,20.98529129]
[1765922524420,0.1,129.09,129.08,29.46529129]
[1765922525042,0.1,129.09,129.05,27.11555857]
[1765922525345,0.4,129.09,129.06,28.78648653]
[1765922525845,0.4,129.09,129.06,29.49648653]
[1765922526044,0.3,129.08,129.02,43.36786469]
[1765922526231,0.3,129.08,129.03,28.78802149]
[1765922526430,27.5130591,129.09,129.05,3.74821281]
[1765922526631,0.3,129.08,129.05,12.93821281]
[1765922526828,0.3,129.08,129.05,20.68710141]
[1765922527549,0.3,129.08,129.05,12.20710141]
[1765922527733,0.3,129.08,129.06,8.48]
[1765922528243,8.04713561,129.08,129.05,12.20710141]
[1765922528442,8.04713561,129.08,129.06,8.48]
[1765922529050,8.14681543,129.09,129.06,8.48]
[1765922529233,8.14681543,129.09,129.06,12.22821281]
[1765922529419,8.14681543,129.09,129.06,8.48]
[1765922529820,8.14681543,129.09,129.07,13.26815773]
[1765922529821,0.1,129.09,129.07,13.26815773]
[1765922530025,0.1,129.09,129.08,8.48]
[1765922530226,0.1,129.09,129.08,28.78529129]
[1765922530440,0.1,129.09,129.08,29.49529129]
[1765922533328,3.46318731,129.15,129.1,0.71]
[1765922533529,2.46318731,129.15,129.12,3.74821281]
[1765922533738,2.46318731,129.15,129.13,8.48]
[1765922537351,0.3,129.14,129.11,3.74821281]
[1765922537556,0.3,129.14,129.11,8.48]
[1765922538637,8.04413381,129.13,129.11,8.48]
[1765922539247,0.3,129.12,129.09,3.74821281]
[1765922539452,0.3,129.12,129.1,8.48]
[1765922540658,8.04495125,129.12,129.1,8.48]
[1765922541032,8.04495125,129.12,129.08,21.01494577]